[Event "Titled Tuesday Blitz March 01 Late 2022"]
[White "Mickiewicz, Piotr"]
[Black "Karttunen, Mika"]
[WhiteFideId "1114891"]
[BlackFideId "502081"]
[WhiteElo "2266"]
[BlackElo "2343"]
[Result "0-1"]
[Round "03"]
[TimeControl "180+1"]
[Date "2022.03.02"]
[WhiteClock "0:00:22"]
[BlackClock "0:00:08"]

1. b3 {[%clk 0:03:00]}  e5 {[%clk 0:02:59]} 2. Bb2 {[%clk 0:03:00]}  d6 {[%clk 0:02:59]} 3. e3 {[%clk 0:02:59]}  f5 {[%clk 0:02:58]} 4. c4 {[%clk 0:02:59]}  Nf6 {[%clk 0:02:58]} 5. Nf3 {[%clk 0:02:59]}  g6 {[%clk 0:02:57]} 6. d4 {[%clk 0:02:58]}  e4 {[%clk 0:02:57]} 7. Nfd2 {[%clk 0:02:58]}  Bg7 {[%clk 0:02:57]} 8. Nc3 {[%clk 0:02:57]}  O-O {[%clk 0:02:56]} 9. Qc2 {[%clk 0:02:57]}  c6 {[%clk 0:02:57]} 10. Be2 {[%clk 0:02:55]}  d5 {[%clk 0:02:56]} 11. h3 {[%clk 0:02:54]}  Be6 {[%clk 0:02:55]} 12. O-O-O {[%clk 0:02:54]}  Qd6 {[%clk 0:02:44]} 13. g4 {[%clk 0:02:52]}  f4 {[%clk 0:02:42]} 14. g5 {[%clk 0:02:49]}  Ne8 {[%clk 0:02:31]} 15. Bg4 {[%clk 0:02:40]}  Bxg4 {[%clk 0:02:12]} 16. hxg4 {[%clk 0:02:39]}  f3 {[%clk 0:02:09]} 17. Ndxe4 {[%clk 0:02:34]}  dxe4 {[%clk 0:02:08]} 18. Nxe4 {[%clk 0:02:34]}  Qe7 {[%clk 0:01:56]} 19. Rh3 {[%clk 0:02:27]}  Na6 {[%clk 0:01:43]} 20. a3 {[%clk 0:02:16]}  Rf7 {[%clk 0:01:38]} 21. Rdh1 {[%clk 0:02:11]}  Bh8 {[%clk 0:01:27]} 22. Nd2 {[%clk 0:02:00]}  Nd6 {[%clk 0:01:21]} 23. Qxg6+ {[%clk 0:01:58]}  Rg7 {[%clk 0:01:17]} 24. Rxh7 {[%clk 0:01:51]}  Rxg6 {[%clk 0:01:12]} 25. Rxe7 {[%clk 0:01:39]}  Rf8 {[%clk 0:01:00]} 26. c5 {[%clk 0:01:19]}  Ne8 {[%clk 0:00:56]} 27. Nxf3 {[%clk 0:01:16]}  Rg7 {[%clk 0:00:51]} 28. Rxh8+ {[%clk 0:01:11]}  Kxh8 {[%clk 0:00:50]} 29. d5 {[%clk 0:01:11]}  cxd5 {[%clk 0:00:40]} 30. g6 {[%clk 0:01:07]}  Nxc5 {[%clk 0:00:35]} 31. Kc2 {[%clk 0:01:03]}  Kg8 {[%clk 0:00:34]} 32. Bxg7 {[%clk 0:01:01]}  Rxf3 {[%clk 0:00:31]} 33. Bd4 {[%clk 0:00:56]}  Rxf2+ {[%clk 0:00:29]} 34. Kd1 {[%clk 0:00:56]}  Nd6 {[%clk 0:00:21]} 35. Bxc5 {[%clk 0:00:49]}  Nb5 {[%clk 0:00:16]} 36. a4 {[%clk 0:00:46]}  Nc3+ {[%clk 0:00:16]} 37. Ke1 {[%clk 0:00:45]}  Re2+ {[%clk 0:00:16]} 38. Kf1 {[%clk 0:00:46]}  Rc2 {[%clk 0:00:12]} 39. Bd4 {[%clk 0:00:41]}  Kf8 {[%clk 0:00:11]} 40. Rc7 {[%clk 0:00:36]}  Rc1+ {[%clk 0:00:10]} 41. Kf2 {[%clk 0:00:36]}  Ne4+ {[%clk 0:00:11]} 42. Kf3 {[%clk 0:00:34]}  Rxc7 {[%clk 0:00:12]} 43. Kf4 {[%clk 0:00:34]}  Kg8 {[%clk 0:00:12]} 44. Kf5 {[%clk 0:00:34]}  b6 {[%clk 0:00:12]} 45. Ke6 {[%clk 0:00:34]}  Nc3 {[%clk 0:00:12]} 46. g5 {[%clk 0:00:32]}  Rc6+ {[%clk 0:00:11]} 47. Kf5 {[%clk 0:00:31]}  a6 {[%clk 0:00:11]} 48. Bf6 {[%clk 0:00:30]}  b5 {[%clk 0:00:11]} 49. a5 {[%clk 0:00:29]}  b4 {[%clk 0:00:11]} 50. Bd4 {[%clk 0:00:29]}  Nb5 {[%clk 0:00:11]} 51. Bf6 {[%clk 0:00:28]}  Rc2 {[%clk 0:00:10]} 52. Ke5 {[%clk 0:00:27]}  Rc3 {[%clk 0:00:10]} 53. Kxd5 {[%clk 0:00:27]}  Rxb3 {[%clk 0:00:11]} 54. Kc4 {[%clk 0:00:27]}  Rb1 {[%clk 0:00:11]} 55. e4 {[%clk 0:00:27]}  Na3+ {[%clk 0:00:11]} 56. Kd3 {[%clk 0:00:24]}  Rd1+ {[%clk 0:00:11]} 57. Ke2 {[%clk 0:00:24]}  Rd6 {[%clk 0:00:10]} 58. e5 {[%clk 0:00:25]}  Re6 {[%clk 0:00:11]} 59. Kd3 {[%clk 0:00:24]}  Rc6 {[%clk 0:00:11]} 60. Kd4 {[%clk 0:00:23]}  b3 {[%clk 0:00:12]} 61. Kd5 {[%clk 0:00:24]}  b2 {[%clk 0:00:09]} 62. Kxc6 {[%clk 0:00:23]}  b1=Q {[%clk 0:00:08]} 63. e6 {[%clk 0:00:24]}  Qb5+ {[%clk 0:00:08]} 64. Kd6 {[%clk 0:00:25]}  Qb4+ {[%clk 0:00:08]} 65. Kd7 {[%clk 0:00:25]}  Qb5+ {[%clk 0:00:07]} 66. Kd6 {[%clk 0:00:25]}  Qb8+ {[%clk 0:00:07]} 67. Kd7 {[%clk 0:00:25]}  Qb7+ {[%clk 0:00:07]} 68. Kd6 {[%clk 0:00:25]}  Qc8 {[%clk 0:00:08]} 69. e7 {[%clk 0:00:24]}  Qe8 {[%clk 0:00:08]} 70. g7 {[%clk 0:00:25]}  Nb5+ {[%clk 0:00:08]} 71. Kc5 {[%clk 0:00:24]}  Kf7 {[%clk 0:00:08]} 72. Kb6 {[%clk 0:00:25]}  Nd6 {[%clk 0:00:07]} 73. Kxa6 {[%clk 0:00:24]}  Qb8 {[%clk 0:00:08]} 74. g8=Q+ {[%clk 0:00:23]}  Qxg8 {[%clk 0:00:07]} 75. e8=Q+ {[%clk 0:00:24]}  Qxe8 {[%clk 0:00:07]} 76. Kb6 {[%clk 0:00:24]}  Qb5+ {[%clk 0:00:06]} 77. Kc7 {[%clk 0:00:24]}  Ne8+ {[%clk 0:00:07]} 78. Kd8 {[%clk 0:00:23]}  Qxa5+ {[%clk 0:00:07]} 79. Kd7 {[%clk 0:00:22]}  Qc7# {[%clk 0:00:08]} 0-1


[Site "https://www.chess.com"]

[Event "Titled Tuesday Blitz March 01 Late 2022"]
[White "Mogranzini, Roberto"]
[Black "Dourerassou, Jonathan"]
[WhiteFideId "810894"]
[BlackFideId "628050"]
[WhiteElo "2469"]
[BlackElo "2513"]
[Result "1/2-1/2"]
[Round "03"]
[TimeControl "180+1"]
[Date "2022.03.02"]
[WhiteClock "0:00:02"]
[BlackClock "0:00:09"]

1. e4 {[%clk 0:03:00]}  d6 {[%clk 0:02:58]} 2. d4 {[%clk 0:03:00]}  g6 {[%clk 0:02:59]} 3. Nc3 {[%clk 0:03:01]}  Bg7 {[%clk 0:03:00]} 4. Be3 {[%clk 0:03:02]}  c6 {[%clk 0:03:00]} 5. Qd2 {[%clk 0:03:01]}  b5 {[%clk 0:03:01]} 6. f3 {[%clk 0:03:01]}  Nf6 {[%clk 0:03:00]} 7. h4 {[%clk 0:03:01]}  Qa5 {[%clk 0:02:59]} 8. g4 {[%clk 0:02:58]}  b4 {[%clk 0:02:58]} 9. Nce2 {[%clk 0:02:58]}  h5 {[%clk 0:02:50]} 10. g5 {[%clk 0:02:57]}  Nfd7 {[%clk 0:02:50]} 11. a3 {[%clk 0:02:43]}  c5 {[%clk 0:02:49]} 12. Nc1 {[%clk 0:02:21]}  cxd4 {[%clk 0:02:25]} 13. Bxd4 {[%clk 0:02:17]}  Bxd4 {[%clk 0:02:25]} 14. Qxd4 {[%clk 0:02:11]}  bxa3+ {[%clk 0:02:26]} 15. b4 {[%clk 0:02:04]}  Qe5 {[%clk 0:02:25]} 16. Qxe5 {[%clk 0:02:03]}  Nxe5 {[%clk 0:02:26]} 17. Rxa3 {[%clk 0:02:02]}  Nbc6 {[%clk 0:02:26]} 18. c3 {[%clk 0:02:02]}  O-O {[%clk 0:02:23]} 19. Nd3 {[%clk 0:01:57]}  Be6 {[%clk 0:02:18]} 20. Nf4 {[%clk 0:01:49]}  Bc4 {[%clk 0:02:15]} 21. Bxc4 {[%clk 0:01:44]}  Nxc4 {[%clk 0:02:16]} 22. Ra6 {[%clk 0:01:44]}  N6e5 {[%clk 0:02:13]} 23. Nd5 {[%clk 0:01:39]}  e6 {[%clk 0:02:07]} 24. Nf6+ {[%clk 0:01:37]}  Kg7 {[%clk 0:02:07]} 25. f4 {[%clk 0:01:37]}  Nd3+ {[%clk 0:02:06]} 26. Ke2 {[%clk 0:01:34]}  Nxf4+ {[%clk 0:02:06]} 27. Kf3 {[%clk 0:01:35]}  Nd3 {[%clk 0:02:01]} 28. Ne2 {[%clk 0:01:34]}  Rfc8 {[%clk 0:01:55]} 29. Rha1 {[%clk 0:01:33]}  Rc7 {[%clk 0:01:53]} 30. Nd4 {[%clk 0:01:09]}  Nce5+ {[%clk 0:01:49]} 31. Ke3 {[%clk 0:01:07]}  Rxc3 {[%clk 0:01:46]} 32. Nxe6+ {[%clk 0:01:06]}  fxe6 {[%clk 0:01:37]} 33. Rxa7+ {[%clk 0:01:06]}  Rxa7 {[%clk 0:01:38]} 34. Rxa7+ {[%clk 0:01:06]}  Kf8 {[%clk 0:01:39]} 35. Kd2 {[%clk 0:00:59]}  Rb3 {[%clk 0:01:19]} 36. Ra8+ {[%clk 0:00:41]}  Ke7 {[%clk 0:01:19]} 37. Re8+ {[%clk 0:00:37]}  Kf7 {[%clk 0:01:18]} 38. Rc8 {[%clk 0:00:34]}  Nxb4 {[%clk 0:01:01]} 39. Rc7+ {[%clk 0:00:31]}  Kf8 {[%clk 0:01:00]} 40. Rb7 {[%clk 0:00:26]}  Nc4+ {[%clk 0:00:57]} 41. Ke2 {[%clk 0:00:27]}  Rb2+ {[%clk 0:00:54]} 42. Kf1 {[%clk 0:00:23]}  Ne3+ {[%clk 0:00:51]} 43. Kg1 {[%clk 0:00:23]}  Nd3 {[%clk 0:00:51]} 44. Rd7 {[%clk 0:00:22]}  Rb1+ {[%clk 0:00:46]} 45. Kh2 {[%clk 0:00:20]}  Ng4+ {[%clk 0:00:45]} 46. Nxg4 {[%clk 0:00:16]}  hxg4 {[%clk 0:00:46]} 47. Rxd6 {[%clk 0:00:17]}  Nf4 {[%clk 0:00:45]} 48. Kg3 {[%clk 0:00:18]}  e5 {[%clk 0:00:44]} 49. Kxg4 {[%clk 0:00:17]}  Rg1+ {[%clk 0:00:43]} 50. Kf3 {[%clk 0:00:17]}  Ke7 {[%clk 0:00:42]} 51. Ra6 {[%clk 0:00:16]}  Rd1 {[%clk 0:00:38]} 52. Ra5 {[%clk 0:00:16]}  Ke6 {[%clk 0:00:37]} 53. Ra6+ {[%clk 0:00:15]}  Rd6 {[%clk 0:00:38]} 54. Ra5 {[%clk 0:00:16]}  Rb6 {[%clk 0:00:36]} 55. Kg4 {[%clk 0:00:16]}  Nd3 {[%clk 0:00:34]} 56. h5 {[%clk 0:00:16]}  gxh5+ {[%clk 0:00:31]} 57. Kxh5 {[%clk 0:00:17]}  Nf2 {[%clk 0:00:32]} 58. g6 {[%clk 0:00:16]}  Nxe4 {[%clk 0:00:32]} 59. g7 {[%clk 0:00:16]}  Kf7 {[%clk 0:00:27]} 60. Rxe5 {[%clk 0:00:15]}  Nf6+ {[%clk 0:00:27]} 61. Kg5 {[%clk 0:00:15]}  Nh7+ {[%clk 0:00:26]} 62. Kh5 {[%clk 0:00:15]}  Kxg7 {[%clk 0:00:25]} 63. Re7+ {[%clk 0:00:15]}  Kg8 {[%clk 0:00:25]} 64. Ra7 {[%clk 0:00:15]}  Nf6+ {[%clk 0:00:24]} 65. Kg5 {[%clk 0:00:15]}  Ne8 {[%clk 0:00:23]} 66. Re7 {[%clk 0:00:15]}  Kf8 {[%clk 0:00:23]} 67. Ra7 {[%clk 0:00:16]}  Nd6 {[%clk 0:00:21]} 68. Kh6 {[%clk 0:00:16]}  Nf7+ {[%clk 0:00:21]} 69. Kh5 {[%clk 0:00:15]}  Kg7 {[%clk 0:00:21]} 70. Kg4 {[%clk 0:00:16]}  Kf6 {[%clk 0:00:21]} 71. Kf3 {[%clk 0:00:17]}  Rb4 {[%clk 0:00:21]} 72. Ke3 {[%clk 0:00:18]}  Ne5 {[%clk 0:00:21]} 73. Kd2 {[%clk 0:00:18]}  Rb3 {[%clk 0:00:21]} 74. Kc2 {[%clk 0:00:18]}  Rh3 {[%clk 0:00:20]} 75. Ra6+ {[%clk 0:00:19]}  Kf5 {[%clk 0:00:17]} 76. Ra5 {[%clk 0:00:20]}  Ke4 {[%clk 0:00:17]} 77. Ra4+ {[%clk 0:00:20]}  Kd5 {[%clk 0:00:17]} 78. Ra5+ {[%clk 0:00:20]}  Kd4 {[%clk 0:00:18]} 79. Ra4+ {[%clk 0:00:20]}  Nc4 {[%clk 0:00:19]} 80. Kd1 {[%clk 0:00:19]}  Kd3 {[%clk 0:00:16]} 81. Ke1 {[%clk 0:00:19]}  Rf3 {[%clk 0:00:15]} 82. Ra8 {[%clk 0:00:16]}  Rf6 {[%clk 0:00:10]} 83. Rd8+ {[%clk 0:00:15]}  Ke3 {[%clk 0:00:10]} 84. Re8+ {[%clk 0:00:15]}  Kd3 {[%clk 0:00:11]} 85. Rd8+ {[%clk 0:00:15]}  Ke4 {[%clk 0:00:11]} 86. Re8+ {[%clk 0:00:15]}  Ne5 {[%clk 0:00:11]} 87. Ra8 {[%clk 0:00:14]}  Rh6 {[%clk 0:00:11]} 88. Kf2 {[%clk 0:00:14]}  Rf6+ {[%clk 0:00:11]} 89. Ke2 {[%clk 0:00:14]}  Nf3 {[%clk 0:00:10]} 90. Ra4+ {[%clk 0:00:13]}  Nd4+ {[%clk 0:00:10]} 91. Ke1 {[%clk 0:00:12]}  Rf3 {[%clk 0:00:09]} 92. Ra8 {[%clk 0:00:11]}  Rh3 {[%clk 0:00:07]} 93. Kf2 {[%clk 0:00:10]}  Rh2+ {[%clk 0:00:07]} 94. Kg3 {[%clk 0:00:10]}  Rh7 {[%clk 0:00:08]} 95. Re8+ {[%clk 0:00:09]}  Kd3 {[%clk 0:00:08]} 96. Rd8 {[%clk 0:00:09]}  Rg7+ {[%clk 0:00:09]} 97. Kf2 {[%clk 0:00:09]}  Rf7+ {[%clk 0:00:09]} 98. Kg3 {[%clk 0:00:09]}  Ke4 {[%clk 0:00:09]} 99. Re8+ {[%clk 0:00:08]}  Kd5 {[%clk 0:00:09]} 100. Rd8+ {[%clk 0:00:08]}  Ke5 {[%clk 0:00:10]} 101. Re8+ {[%clk 0:00:08]}  Ne6 {[%clk 0:00:10]} 102. Ra8 {[%clk 0:00:08]}  Ke4 {[%clk 0:00:10]} 103. Re8 {[%clk 0:00:06]}  Rg7+ {[%clk 0:00:09]} 104. Kf2 {[%clk 0:00:06]}  Rg6 {[%clk 0:00:10]} 105. Kf1 {[%clk 0:00:05]}  Ke3 {[%clk 0:00:10]} 106. Re7 {[%clk 0:00:03]}  Kf3 {[%clk 0:00:10]} 107. Rf7+ {[%clk 0:00:03]}  Nf4 {[%clk 0:00:08]} 108. Ke1 {[%clk 0:00:02]}  Rd6 {[%clk 0:00:08]} 109. Rf8 {[%clk 0:00:02]}  Ke3 {[%clk 0:00:08]} 110. Re8+ {[%clk 0:00:02]}  Kf3 {[%clk 0:00:08]} 111. Rf8 {[%clk 0:00:02]}  Rd5 {[%clk 0:00:08]} 112. Rf7 {[%clk 0:00:02]}  Re5+ {[%clk 0:00:09]} 1/2-1/2


[Site "https://www.chess.com"]

[Event "Titled Tuesday Blitz March 01 Late 2022"]
[White "Morales Flores, Monserrat"]
[Black "Okike, David"]
[WhiteFideId "3412016"]
[BlackFideId "8500134"]
[WhiteElo "2028"]
[BlackElo "2232"]
[Result "1-0"]
[Round "03"]
[TimeControl "180+1"]
[Date "2022.03.02"]
[WhiteClock "0:01:18"]
[BlackClock "0:01:32"]

1. e4 {[%clk 0:02:59]}  c5 {[%clk 0:02:57]} 2. Nf3 {[%clk 0:02:59]}  Nc6 {[%clk 0:02:57]} 3. d4 {[%clk 0:03:00]}  cxd4 {[%clk 0:02:57]} 4. Nxd4 {[%clk 0:03:00]}  Nf6 {[%clk 0:02:57]} 5. Nc3 {[%clk 0:03:00]}  d6 {[%clk 0:02:57]} 6. Bg5 {[%clk 0:02:56]}  a6 {[%clk 0:02:57]} 7. Nxc6 {[%clk 0:02:48]}  bxc6 {[%clk 0:02:56]} 8. Bc4 {[%clk 0:02:49]}  Qb6 {[%clk 0:02:53]} 9. Bb3 {[%clk 0:02:46]}  e6 {[%clk 0:02:48]} 10. Bxf6 {[%clk 0:02:40]}  gxf6 {[%clk 0:02:48]} 11. Qh5 {[%clk 0:02:38]}  h6 {[%clk 0:02:45]} 12. O-O-O {[%clk 0:02:37]}  Be7 {[%clk 0:02:44]} 13. Rhf1 {[%clk 0:02:29]}  a5 {[%clk 0:02:40]} 14. Na4 {[%clk 0:02:29]}  Qa7 {[%clk 0:02:36]} 15. f4 {[%clk 0:02:27]}  Qe3+ {[%clk 0:02:35]} 16. Kb1 {[%clk 0:02:26]}  Qxe4 {[%clk 0:02:34]} 17. Nb6 {[%clk 0:02:26]}  Rb8 {[%clk 0:02:26]} 18. Nxc8 {[%clk 0:02:26]}  Rxc8 {[%clk 0:02:26]} 19. Rfe1 {[%clk 0:02:25]}  Qg6 {[%clk 0:02:25]} 20. Qxg6 {[%clk 0:02:23]}  fxg6 {[%clk 0:02:25]} 21. Rxe6 {[%clk 0:02:24]}  Kd7 {[%clk 0:02:22]} 22. Rde1 {[%clk 0:02:14]}  Rh7 {[%clk 0:02:21]} 23. R6e3 {[%clk 0:02:11]}  Ra8 {[%clk 0:02:18]} 24. Be6+ {[%clk 0:02:11]}  Kd8 {[%clk 0:02:17]} 25. f5 {[%clk 0:02:10]}  g5 {[%clk 0:02:10]} 26. Bg8 {[%clk 0:02:00]}  Rg7 {[%clk 0:02:09]} 27. Be6 {[%clk 0:01:59]}  a4 {[%clk 0:02:09]} 28. a3 {[%clk 0:01:59]}  Ra7 {[%clk 0:02:07]} 29. c4 {[%clk 0:01:57]}  Rb7 {[%clk 0:02:05]} 30. Rd3 {[%clk 0:01:57]}  Kc7 {[%clk 0:02:04]} 31. Red1 {[%clk 0:01:46]}  g4 {[%clk 0:02:02]} 32. g3 {[%clk 0:01:44]}  h5 {[%clk 0:02:02]} 33. Rd4 {[%clk 0:01:43]}  Ra7 {[%clk 0:01:52]} 34. Ka2 {[%clk 0:01:36]}  Rh7 {[%clk 0:01:51]} 35. R1d2 {[%clk 0:01:35]}  Rh8 {[%clk 0:01:50]} 36. Bf7 {[%clk 0:01:34]}  h4 {[%clk 0:01:47]} 37. Rxg4 {[%clk 0:01:33]}  hxg3 {[%clk 0:01:47]} 38. hxg3 {[%clk 0:01:33]}  Kb6 {[%clk 0:01:46]} 39. Rg7 {[%clk 0:01:28]}  Kc5 {[%clk 0:01:44]} 40. Be6 {[%clk 0:01:28]}  Rc7 {[%clk 0:01:39]} 41. g4 {[%clk 0:01:28]}  Rh3 {[%clk 0:01:37]} 42. g5 {[%clk 0:01:23]}  fxg5 {[%clk 0:01:35]} 43. f6 {[%clk 0:01:23]}  Re3 {[%clk 0:01:33]} 44. fxe7 {[%clk 0:01:19]}  Rxe6 {[%clk 0:01:32]} 45. e8=Q {[%clk 0:01:18]}  Kb6 {[%clk 0:01:32]} 46. Qxe6 {[%clk 0:01:18]} 1-0


[Site "https://www.chess.com"]

[Event "Titled Tuesday Blitz March 01 Late 2022"]
[White "Petrovic, Aleksa"]
[Black "Daggupati, Balaji"]
[WhiteFideId "967629"]
[BlackFideId "2090759"]
[WhiteElo "2139"]
[BlackElo "2737"]
[Result "0-1"]
[Round "03"]
[TimeControl "180+1"]
[Date "2022.03.02"]
[WhiteClock "0:00:03"]
[BlackClock "0:00:39"]

1. Nf3 {[%clk 0:03:00]}  d5 {[%clk 0:02:59]} 2. g3 {[%clk 0:03:00]}  Bg4 {[%clk 0:02:59]} 3. Bg2 {[%clk 0:03:01]}  c6 {[%clk 0:02:59]} 4. h3 {[%clk 0:03:00]}  Bxf3 {[%clk 0:02:58]} 5. Bxf3 {[%clk 0:03:01]}  Nd7 {[%clk 0:02:59]} 6. c4 {[%clk 0:03:00]}  dxc4 {[%clk 0:02:58]} 7. Qc2 {[%clk 0:02:56]}  Ngf6 {[%clk 0:02:57]} 8. Qxc4 {[%clk 0:02:44]}  Ne5 {[%clk 0:02:57]} 9. Qb3 {[%clk 0:02:44]}  Nxf3+ {[%clk 0:02:57]} 10. Qxf3 {[%clk 0:02:45]}  e5 {[%clk 0:02:57]} 11. Qb3 {[%clk 0:02:39]}  Bc5 {[%clk 0:02:55]} 12. Qxb7 {[%clk 0:02:34]}  O-O {[%clk 0:02:55]} 13. O-O {[%clk 0:02:17]}  Qd6 {[%clk 0:02:45]} 14. Nc3 {[%clk 0:02:09]}  e4 {[%clk 0:02:17]} 15. Kg2 {[%clk 0:02:08]}  h5 {[%clk 0:02:07]} 16. Rd1 {[%clk 0:01:57]}  h4 {[%clk 0:01:47]} 17. d4 {[%clk 0:01:39]}  exd3 {[%clk 0:01:25]} 18. Rxd3 {[%clk 0:01:38]}  Qe6 {[%clk 0:01:25]} 19. Be3 {[%clk 0:01:26]}  Ne4 {[%clk 0:01:06]} 20. Nxe4 {[%clk 0:01:13]}  Qxe4+ {[%clk 0:01:07]} 21. f3 {[%clk 0:01:13]}  Qe5 {[%clk 0:01:08]} 22. Bxc5 {[%clk 0:00:08]}  Qxe2+ {[%clk 0:01:08]} 23. Bf2 {[%clk 0:00:09]}  hxg3 {[%clk 0:01:02]} 24. Kxg3 {[%clk 0:00:09]}  Qxd3 {[%clk 0:01:02]} 25. Qxc6 {[%clk 0:00:10]}  Rac8 {[%clk 0:01:01]} 26. Qe4 {[%clk 0:00:10]}  Qd6+ {[%clk 0:00:59]} 27. Qf4 {[%clk 0:00:10]}  Qxf4+ {[%clk 0:00:54]} 28. Kxf4 {[%clk 0:00:10]}  Rc4+ {[%clk 0:00:54]} 29. Kg3 {[%clk 0:00:09]}  Rd8 {[%clk 0:00:48]} 30. Bxa7 {[%clk 0:00:07]}  Rc2 {[%clk 0:00:46]} 31. b4 {[%clk 0:00:06]}  Ra8 {[%clk 0:00:41]} 32. Be3 {[%clk 0:00:04]}  Ra3 {[%clk 0:00:40]} 33. Kf4 {[%clk 0:00:03]}  Rc4+ {[%clk 0:00:39]} 0-1


[Site "https://www.chess.com"]

[Event "Titled Tuesday Blitz March 01 Late 2022"]
[White "Quesada Perez, Yuniesky"]
[Black "Gareyev, Timur"]
[WhiteFideId "3504409"]
[BlackFideId "14200937"]
[WhiteElo "2622"]
[BlackElo "2586"]
[Result "0-1"]
[Round "03"]
[TimeControl "180+1"]
[Date "2022.03.01"]
[WhiteClock "0:00:01"]
[BlackClock "0:00:09"]

1. e4 {[%clk 0:03:00]}  g6 {[%clk 0:02:57]} 2. d4 {[%clk 0:03:00]}  d6 {[%clk 0:02:57]} 3. Nc3 {[%clk 0:03:00]}  a6 {[%clk 0:02:57]} 4. Be3 {[%clk 0:03:00]}  Nd7 {[%clk 0:02:55]} 5. h4 {[%clk 0:03:00]}  Ngf6 {[%clk 0:02:54]} 6. f3 {[%clk 0:02:57]}  b5 {[%clk 0:02:33]} 7. Qd2 {[%clk 0:02:56]}  Bb7 {[%clk 0:02:21]} 8. g4 {[%clk 0:02:53]}  h6 {[%clk 0:02:07]} 9. Nh3 {[%clk 0:02:52]}  e5 {[%clk 0:02:06]} 10. g5 {[%clk 0:02:49]}  hxg5 {[%clk 0:02:05]} 11. Nxg5 {[%clk 0:02:50]}  Bg7 {[%clk 0:02:02]} 12. O-O-O {[%clk 0:02:48]}  Qe7 {[%clk 0:01:52]} 13. Kb1 {[%clk 0:02:43]}  b4 {[%clk 0:01:40]} 14. Ne2 {[%clk 0:02:20]}  a5 {[%clk 0:01:28]} 15. Ng3 {[%clk 0:02:18]}  exd4 {[%clk 0:01:18]} 16. Bxd4 {[%clk 0:02:16]}  c5 {[%clk 0:01:17]} 17. Bf2 {[%clk 0:02:10]}  d5 {[%clk 0:00:51]} 18. e5 {[%clk 0:01:44]}  Nxe5 {[%clk 0:00:47]} 19. Re1 {[%clk 0:01:44]}  O-O-O {[%clk 0:00:44]} 20. Qe2 {[%clk 0:00:56]}  Rhe8 {[%clk 0:00:38]} 21. Qb5 {[%clk 0:00:53]}  Qc7 {[%clk 0:00:30]} 22. Bxc5 {[%clk 0:00:47]}  Ned7 {[%clk 0:00:23]} 23. Bf2 {[%clk 0:00:22]}  Rxe1+ {[%clk 0:00:22]} 24. Bxe1 {[%clk 0:00:23]}  Qe5 {[%clk 0:00:23]} 25. Bh3 {[%clk 0:00:14]}  Ne4 {[%clk 0:00:23]} 26. c3 {[%clk 0:00:08]}  Nxg3 {[%clk 0:00:18]} 27. Bxg3 {[%clk 0:00:08]}  Qxg3 {[%clk 0:00:17]} 28. Nxf7 {[%clk 0:00:09]}  Qxf3 {[%clk 0:00:11]} 29. Nd6+ {[%clk 0:00:05]}  Kc7 {[%clk 0:00:11]} 30. Rg1 {[%clk 0:00:04]}  Kxd6 {[%clk 0:00:10]} 31. Qxb7 {[%clk 0:00:01]}  Qe4+ {[%clk 0:00:10]} 32. Ka1 {[%clk 0:00:01]}  bxc3 {[%clk 0:00:09]} 33. Qa6+ {[%clk 0:00:01]}  Ke7 {[%clk 0:00:09]} 0-1


[Site "https://www.chess.com"]

[Event "Titled Tuesday Blitz March 01 Late 2022"]
[White "Rabineau, Clement"]
[Black "Goryachkina, Aleksandra"]
[WhiteFideId "628891"]
[BlackFideId "4147103"]
[WhiteElo "2237"]
[BlackElo "2426"]
[Result "1-0"]
[Round "03"]
[TimeControl "180+1"]
[Date "2022.03.02"]
[WhiteClock "0:00:02"]
[BlackClock "0:00:05"]

1. e4 {[%clk 0:03:00]}  c5 {[%clk 0:02:59]} 2. c3 {[%clk 0:03:01]}  Nf6 {[%clk 0:02:56]} 3. e5 {[%clk 0:03:01]}  Nd5 {[%clk 0:02:57]} 4. Bc4 {[%clk 0:03:00]}  Nb6 {[%clk 0:02:54]} 5. Bb3 {[%clk 0:03:01]}  d5 {[%clk 0:02:51]} 6. exd6 {[%clk 0:03:00]}  Qxd6 {[%clk 0:02:48]} 7. Nf3 {[%clk 0:02:59]}  Nc6 {[%clk 0:02:43]} 8. d4 {[%clk 0:02:53]}  cxd4 {[%clk 0:02:41]} 9. cxd4 {[%clk 0:02:54]}  Be6 {[%clk 0:02:38]} 10. O-O {[%clk 0:02:46]}  Bxb3 {[%clk 0:02:37]} 11. Qxb3 {[%clk 0:02:47]}  e6 {[%clk 0:02:36]} 12. Nc3 {[%clk 0:02:42]}  Be7 {[%clk 0:02:36]} 13. a4 {[%clk 0:02:10]}  Qb4 {[%clk 0:02:22]} 14. Qxb4 {[%clk 0:02:06]}  Bxb4 {[%clk 0:02:21]} 15. Be3 {[%clk 0:01:42]}  O-O {[%clk 0:02:19]} 16. Rfd1 {[%clk 0:01:40]}  Rfd8 {[%clk 0:02:18]} 17. Ne5 {[%clk 0:01:29]}  Rac8 {[%clk 0:02:09]} 18. Nxc6 {[%clk 0:01:26]}  Rxc6 {[%clk 0:02:08]} 19. a5 {[%clk 0:01:04]}  Nd5 {[%clk 0:02:00]} 20. a6 {[%clk 0:01:00]}  bxa6 {[%clk 0:01:50]} 21. Nxd5 {[%clk 0:00:59]}  exd5 {[%clk 0:01:40]} 22. Kf1 {[%clk 0:00:54]}  f6 {[%clk 0:01:37]} 23. Ke2 {[%clk 0:00:53]}  a5 {[%clk 0:01:27]} 24. Kd3 {[%clk 0:00:53]}  Rb8 {[%clk 0:01:21]} 25. Rdc1 {[%clk 0:00:51]}  Rbb6 {[%clk 0:01:15]} 26. Rxc6 {[%clk 0:00:49]}  Rxc6 {[%clk 0:01:16]} 27. Bd2 {[%clk 0:00:46]}  Rc4 {[%clk 0:01:05]} 28. b3 {[%clk 0:00:34]}  Rc7 {[%clk 0:01:04]} 29. Bxb4 {[%clk 0:00:31]}  axb4 {[%clk 0:01:05]} 30. Kd2 {[%clk 0:00:32]}  Kf7 {[%clk 0:00:44]} 31. g4 {[%clk 0:00:32]}  Kg6 {[%clk 0:00:39]} 32. h4 {[%clk 0:00:32]}  h5 {[%clk 0:00:39]} 33. f3 {[%clk 0:00:31]}  Re7 {[%clk 0:00:32]} 34. gxh5+ {[%clk 0:00:32]}  Kxh5 {[%clk 0:00:32]} 35. Ra5 {[%clk 0:00:31]}  Kxh4 {[%clk 0:00:32]} 36. Rxd5 {[%clk 0:00:31]}  Kg3 {[%clk 0:00:32]} 37. Rf5 {[%clk 0:00:29]}  a5 {[%clk 0:00:23]} 38. d5 {[%clk 0:00:28]}  Rc7 {[%clk 0:00:14]} 39. Kd3 {[%clk 0:00:26]}  a4 {[%clk 0:00:14]} 40. bxa4 {[%clk 0:00:24]}  b3 {[%clk 0:00:14]} 41. d6 {[%clk 0:00:24]}  Rb7 {[%clk 0:00:12]} 42. Rb5 {[%clk 0:00:19]}  Rd7 {[%clk 0:00:11]} 43. Rxb3 {[%clk 0:00:18]}  Rxd6+ {[%clk 0:00:11]} 44. Ke4 {[%clk 0:00:19]}  Ra6 {[%clk 0:00:10]} 45. Ra3 {[%clk 0:00:19]}  Ra5 {[%clk 0:00:10]} 46. f4+ {[%clk 0:00:18]}  Kg4 {[%clk 0:00:10]} 47. f5 {[%clk 0:00:19]}  Re5+ {[%clk 0:00:06]} 48. Kd4 {[%clk 0:00:19]}  Kxf5 {[%clk 0:00:07]} 49. a5 {[%clk 0:00:19]}  Re8 {[%clk 0:00:07]} 50. a6 {[%clk 0:00:19]}  g5 {[%clk 0:00:07]} 51. Ra5+ {[%clk 0:00:19]}  Kf4 {[%clk 0:00:06]} 52. Ra1 {[%clk 0:00:20]}  g4 {[%clk 0:00:06]} 53. Rf1+ {[%clk 0:00:20]}  Kg5 {[%clk 0:00:07]} 54. a7 {[%clk 0:00:20]}  f5 {[%clk 0:00:07]} 55. Rb1 {[%clk 0:00:20]}  Ra8 {[%clk 0:00:06]} 56. Ra1 {[%clk 0:00:19]}  g3 {[%clk 0:00:06]} 57. Ke3 {[%clk 0:00:18]}  Kg4 {[%clk 0:00:07]} 58. Ra6 {[%clk 0:00:15]}  Re8+ {[%clk 0:00:04]} 59. Kd2 {[%clk 0:00:09]}  Kf3 {[%clk 0:00:04]} 60. Ra3+ {[%clk 0:00:05]}  Kf2 {[%clk 0:00:04]} 61. a8=Q {[%clk 0:00:05]}  Rxa8 {[%clk 0:00:04]} 62. Rxa8 {[%clk 0:00:06]}  g2 {[%clk 0:00:04]} 63. Rg8 {[%clk 0:00:06]}  f4 {[%clk 0:00:05]} 64. Kd3 {[%clk 0:00:04]}  f3 {[%clk 0:00:05]} 65. Ke4 {[%clk 0:00:04]}  Ke2 {[%clk 0:00:05]} 66. Rg3 {[%clk 0:00:02]} 1-0


[Site "https://www.chess.com"]